Workbook

Sheet Go
M1: 16552
B3: Amplitude | C3: Wavelength l | D3: Wavenumber k | E3: Angular frequency w | F3: frequency f | G3: Phase velocity vf
A4: Wave 1 | B4: 0.4 | C4: 6 | D4: =2*PI()/Wavelength1 -> 1.047197551 | E4: =($M$1/32677)*Wavenumber1 -> 0.5304407953 | F4: =omega1/(2*PI()) -> 0.08442227459 | G4: =omega1/Wavenumber1 -> 0.5065336475 | O4: =(1-EXP(-2*Wavenumber1*depth))/(1+EXP(-2*Wavenumber1*depth)) -> 0
A5: Wave 2 | B5: 0.4 | C5: 6 | D5: =2*PI()/Wavelength2 -> 1.047197551 | E5: =($M$1/32677)*Wavenumber2 -> 0.5304407953 | F5: =omega1/(2*PI()) -> 0.08442227459 | G5: =omega2/Wavenumber2 -> 0.5065336475 | O5: =(1-EXP(-2*Wavenumber2*depth))/(1+EXP(-2*Wavenumber2*depth)) -> 0
G8: =O524 -> 30.42
O11: Peakstart | P11: 0
O12: offset | P12: 0
B13: Time (s) | C13: 14.688
B14: TimeStepSize | C14: =510*stepsize*0.5*(Wavelength1+Wavelength2)/(0.5*(Vphase1+Vphase2)*500) -> 0.1208211938 | O14: Group | P14: =Peakstart*0.5*(Wavelength1+Wavelength2)+0.5*(Vgroup1+Vgroup2)*Time -> 0 | Q14: =Height1*COS(Wavenumber1*P14-omega1*Time) -> 0.02513033179 | R14: =Height2*COS(Wavenumber2*P14-omega2*Time) -> 0.02513033179 | S14: =amplitude1+amplitude2 -> 0.8
B15: TimeStepNumber | C15: 500 | O15: Peak position | P15: =Peakstart*0.5*(Wavelength1+Wavelength2)+0.5*(Vphase1+Vphase2)*Time -> 7.439966215 | Q15: =Height1*COS(Wavenumber1*P15-omega1*Time) -> 0.4 | R15: =Height2*COS(Wavenumber2*P15-omega2*Time) -> 0.4 | S15: =Q15+R15 -> 0.8
P16: y(1) | Q16: y(2) | R16: Sum
O17: 0 | P17: =Height1*COS(Wavenumber1*$O17-omega1*Time) -> 0.02513033179 | Q17: =offset+Height2*COS(Wavenumber2*$O17+omega2*Time) -> 0.02513033179 | R17: =2+P17+Q17 -> 2.050260664
O18: =O17+stepsize*0.5*(Wavelength1+Wavelength1) -> 0.06 | P18: 0.05014733373 | Q18: =offset+Height2*COS(Wavenumber2*$O18+omega2*Time) -> 1.415192455e-05 | R18: =2+P18+Q18 -> 2.050161486
O19: =O18+stepsize*0.5*(Wavelength1+Wavelength1) -> 0.12 | P19: 0.07496642704 | Q19: -0.0251020838 | R19: 2.049864343
O20: 0.18 | P20: 0.09948966212 | Q20: -0.05011925306 | R20: 2.049370409
O21: 0.24 | P21: 0.123620257 | Q21: -0.07493862453 | R21: 2.048681632
O22: 0.3 | P22: 0.1472629791 | Q22: -0.09946224749 | R22: 2.047800732
O23: 0.36 | P23: 0.1703245216 | Q23: -0.1235933384 | R23: 2.046731183
O24: 0.42 | P24: 0.1927138709 | Q24: -0.1472366629 | R24: 2.045477208
O25: 0.48 | P25: 0.2143426667 | Q25: -0.1702989115 | R25: 2.044043755
O26: 0.54 | P26: 0.2351255499 | Q26: -0.1926890681 | R26: 2.042436482
B27: stepsize | C27: 0.01 | O27: 0.6 | P27: 0.2549805 | Q27: -0.214318769 | R27: 2.040661731
O28: 0.66 | P28: 0.2738291585 | Q28: -0.2351026516 | R28: 2.038726507
O29: 0.72 | P29: 0.2915971384 | Q29: -0.2549586915 | R29: 2.036638447
O30: 0.78 | P30: 0.3082143177 | Q30: -0.2738085259 | R30: 2.034405792
O31: 0.84 | P31: 0.3236151158 | Q31: -0.2915777631 | R31: 2.032037353
O32: 0.9 | P32: 0.337738753 | Q32: -0.3081962761 | R32: 2.029542477
O33: 0.96 | P33: 0.3505294895 | Q33: -0.3235984793 | R33: 2.02693101
O34: 1.02 | P34: 0.3619368464 | Q34: -0.337723587 | R34: 2.024213259
O35: 1.08 | P35: 0.3719158038 | Q35: -0.3505158541 | R35: 2.02139995
O36: 1.14 | P36: 0.3804269795 | Q36: -0.3619247952 | R36: 2.018502184
O37: 1.2 | P37: 0.3874367836 | Q37: -0.3719053845 | R37: 2.015531399
O38: 1.26 | P38: 0.3929175519 | Q38: -0.3804182331 | R38: 2.012499319
O39: 1.32 | P39: 0.396847654 | Q39: -0.3874297448 | R39: 2.009417909
O40: 1.38 | P40: 0.3992115797 | Q40: -0.3929122482 | R40: 2.006299331
O41: 1.44 | P41: 0.3999999997 | Q41: -0.3968441066 | R41: 2.003155893
O42: 1.5 | P42: 0.3992098025 | Q42: -0.3992098025 | R42: 2
O43: 1.56 | P43: 0.3968441066 | Q43: -0.3999999997 | R43: 1.996844107
O44: 1.62 | P44: 0.3929122482 | Q44: -0.3992115797 | R44: 1.993700669
O45: 1.68 | P45: 0.3874297448 | Q45: -0.396847654 | R45: 1.990582091
O46: 1.74 | P46: 0.3804182331 | Q46: -0.3929175519 | R46: 1.987500681
O47: 1.8 | P47: 0.3719053845 | Q47: -0.3874367836 | R47: 1.984468601
O48: 1.86 | P48: 0.3619247952 | Q48: -0.3804269795 | R48: 1.981497816
O49: 1.92 | P49: 0.3505158541 | Q49: -0.3719158038 | R49: 1.97860005
O50: 1.98 | P50: 0.337723587 | Q50: -0.3619368464 | R50: 1.975786741
O51: 2.04 | P51: 0.3235984793 | Q51: -0.3505294895 | R51: 1.97306899
O52: 2.1 | P52: 0.3081962761 | Q52: -0.337738753 | R52: 1.970457523
O53: 2.16 | P53: 0.2915777631 | Q53: -0.3236151158 | R53: 1.967962647
O54: 2.22 | P54: 0.2738085259 | Q54: -0.3082143177 | R54: 1.965594208
O55: 2.28 | P55: 0.2549586915 | Q55: -0.2915971384 | R55: 1.963361553
O56: 2.34 | P56: 0.2351026516 | Q56: -0.2738291585 | R56: 1.961273493
O57: 2.4 | P57: 0.214318769 | Q57: -0.2549805 | R57: 1.959338269
O58: 2.46 | P58: 0.1926890681 | Q58: -0.2351255499 | R58: 1.957563518
O59: 2.52 | P59: 0.1702989115 | Q59: -0.2143426667 | R59: 1.955956245
O60: 2.58 | P60: 0.1472366629 | Q60: -0.1927138709 | R60: 1.954522792
O61: 2.64 | P61: 0.1235933384 | Q61: -0.1703245216 | R61: 1.953268817
O62: 2.7 | P62: 0.09946224749 | Q62: -0.1472629791 | R62: 1.952199268
O63: 2.76 | P63: 0.07493862453 | Q63: -0.123620257 | R63: 1.951318368
O64: 2.82 | P64: 0.05011925306 | Q64: -0.09948966212 | R64: 1.950629591
O65: 2.88 | P65: 0.0251020838 | Q65: -0.07496642704 | R65: 1.950135657
O66: 2.94 | P66: -1.415192455e-05 | Q66: -0.05014733373 | R66: 1.949838514
O67: 3 | P67: -0.02513033179 | Q67: -0.02513033179 | R67: 1.949739336
O68: 3.06 | P68: -0.05014733373 | Q68: -1.415192455e-05 | R68: 1.949838514
O69: 3.12 | P69: -0.07496642704 | Q69: 0.0251020838 | R69: 1.950135657
O70: 3.18 | P70: -0.09948966212 | Q70: 0.05011925306 | R70: 1.950629591
O71: 3.24 | P71: -0.123620257 | Q71: 0.07493862453 | R71: 1.951318368
O72: 3.3 | P72: -0.1472629791 | Q72: 0.09946224749 | R72: 1.952199268
O73: 3.36 | P73: -0.1703245216 | Q73: 0.1235933384 | R73: 1.953268817
O74: 3.42 | P74: -0.1927138709 | Q74: 0.1472366629 | R74: 1.954522792
O75: 3.48 | P75: -0.2143426667 | Q75: 0.1702989115 | R75: 1.955956245
O76: 3.54 | P76: -0.2351255499 | Q76: 0.1926890681 | R76: 1.957563518
O77: 3.6 | P77: -0.2549805 | Q77: 0.214318769 | R77: 1.959338269
O78: 3.66 | P78: -0.2738291585 | Q78: 0.2351026516 | R78: 1.961273493
O79: 3.72 | P79: -0.2915971384 | Q79: 0.2549586915 | R79: 1.963361553
O80: 3.78 | P80: -0.3082143177 | Q80: 0.2738085259 | R80: 1.965594208
O81: 3.84 | P81: =Height1*COS(Wavenumber1*$O81-omega1*Time) -> -0.3236151158 | Q81: 0.2915777631 | R81: 1.967962647
O82: 3.9 | P82: -0.337738753 | Q82: =offset+Height2*COS(Wavenumber2*$O82+omega2*Time) -> 0.3081962761 | R82: =2+P82+Q82 -> 1.970457523
O83: =O82+stepsize*0.5*(Wavelength1+Wavelength1) -> 3.96 | P83: -0.3505294895 | Q83: 0.3235984793 | R83: 1.97306899
O84: 4.02 | P84: -0.3619368464 | Q84: 0.337723587 | R84: 1.975786741
O85: 4.08 | P85: -0.3719158038 | Q85: 0.3505158541 | R85: 1.97860005
O86: 4.14 | P86: -0.3804269795 | Q86: 0.3619247952 | R86: 1.981497816
O87: 4.2 | P87: -0.3874367836 | Q87: 0.3719053845 | R87: 1.984468601
O88: 4.26 | P88: -0.3929175519 | Q88: 0.3804182331 | R88: 1.987500681
O89: 4.32 | P89: -0.396847654 | Q89: 0.3874297448 | R89: 1.990582091
O90: 4.38 | P90: -0.3992115797 | Q90: 0.3929122482 | R90: 1.993700669
O91: 4.44 | P91: -0.3999999997 | Q91: 0.3968441066 | R91: 1.996844107
O92: 4.5 | P92: -0.3992098025 | Q92: 0.3992098025 | R92: 2
O93: 4.56 | P93: -0.3968441066 | Q93: 0.3999999997 | R93: 2.003155893
O94: 4.62 | P94: -0.3929122482 | Q94: 0.3992115797 | R94: 2.006299331
O95: 4.68 | P95: -0.3874297448 | Q95: 0.396847654 | R95: 2.009417909
O96: 4.74 | P96: -0.3804182331 | Q96: 0.3929175519 | R96: 2.012499319
O97: 4.8 | P97: -0.3719053845 | Q97: 0.3874367836 | R97: 2.015531399
O98: 4.86 | P98: -0.3619247952 | Q98: 0.3804269795 | R98: 2.018502184
O99: 4.92 | P99: -0.3505158541 | Q99: 0.3719158038 | R99: 2.02139995
O100: 4.98 | P100: -0.337723587 | Q100: 0.3619368464 | R100: 2.024213259
O101: 5.04 | P101: -0.3235984793 | Q101: 0.3505294895 | R101: 2.02693101
O102: 5.1 | P102: -0.3081962761 | Q102: 0.337738753 | R102: 2.029542477
O103: 5.16 | P103: -0.2915777631 | Q103: 0.3236151158 | R103: 2.032037353
O104: 5.22 | P104: -0.2738085259 | Q104: 0.3082143177 | R104: 2.034405792
O105: 5.28 | P105: -0.2549586915 | Q105: 0.2915971384 | R105: 2.036638447
O106: 5.34 | P106: -0.2351026516 | Q106: 0.2738291585 | R106: 2.038726507
O107: 5.4 | P107: -0.214318769 | Q107: 0.2549805 | R107: 2.040661731
O108: 5.46 | P108: -0.1926890681 | Q108: 0.2351255499 | R108: 2.042436482
O109: 5.52 | P109: -0.1702989115 | Q109: 0.2143426667 | R109: 2.044043755
O110: 5.58 | P110: -0.1472366629 | Q110: 0.1927138709 | R110: 2.045477208
O111: 5.64 | P111: -0.1235933384 | Q111: 0.1703245216 | R111: 2.046731183
O112: 5.7 | P112: -0.09946224749 | Q112: 0.1472629791 | R112: 2.047800732
O113: 5.76 | P113: -0.07493862453 | Q113: 0.123620257 | R113: 2.048681632
O114: 5.82 | P114: -0.05011925306 | Q114: 0.09948966212 | R114: 2.049370409
O115: 5.88 | P115: -0.0251020838 | Q115: 0.07496642704 | R115: 2.049864343
O116: 5.94 | P116: 1.415192455e-05 | Q116: 0.05014733373 | R116: 2.050161486
O117: 6 | P117: 0.02513033179 | Q117: 0.02513033179 | R117: 2.050260664
O118: 6.06 | P118: 0.05014733373 | Q118: 1.415192455e-05 | R118: 2.050161486
O119: 6.12 | P119: 0.07496642704 | Q119: -0.0251020838 | R119: 2.049864343
O120: 6.18 | P120: 0.09948966212 | Q120: -0.05011925306 | R120: 2.049370409
O121: 6.24 | P121: 0.123620257 | Q121: -0.07493862453 | R121: 2.048681632
O122: 6.3 | P122: 0.1472629791 | Q122: -0.09946224749 | R122: 2.047800732
O123: 6.36 | P123: 0.1703245216 | Q123: -0.1235933384 | R123: 2.046731183
O124: 6.42 | P124: 0.1927138709 | Q124: -0.1472366629 | R124: 2.045477208
O125: 6.48 | P125: 0.2143426667 | Q125: -0.1702989115 | R125: 2.044043755
O126: 6.54 | P126: 0.2351255499 | Q126: -0.1926890681 | R126: 2.042436482
O127: 6.6 | P127: 0.2549805 | Q127: -0.214318769 | R127: 2.040661731
O128: 6.66 | P128: 0.2738291585 | Q128: -0.2351026516 | R128: 2.038726507
O129: 6.72 | P129: 0.2915971384 | Q129: -0.2549586915 | R129: 2.036638447
O130: 6.78 | P130: 0.3082143177 | Q130: -0.2738085259 | R130: 2.034405792
O131: 6.84 | P131: 0.3236151158 | Q131: -0.2915777631 | R131: 2.032037353
O132: 6.9 | P132: 0.337738753 | Q132: -0.3081962761 | R132: 2.029542477
O133: 6.96 | P133: 0.3505294895 | Q133: -0.3235984793 | R133: 2.02693101
O134: 7.02 | P134: 0.3619368464 | Q134: -0.337723587 | R134: 2.024213259
O135: 7.08 | P135: 0.3719158038 | Q135: -0.3505158541 | R135: 2.02139995
O136: 7.14 | P136: 0.3804269795 | Q136: -0.3619247952 | R136: 2.018502184
O137: 7.2 | P137: 0.3874367836 | Q137: -0.3719053845 | R137: 2.015531399
O138: 7.26 | P138: 0.3929175519 | Q138: -0.3804182331 | R138: 2.012499319
O139: 7.32 | P139: 0.396847654 | Q139: -0.3874297448 | R139: 2.009417909
O140: 7.38 | P140: 0.3992115797 | Q140: -0.3929122482 | R140: 2.006299331
O141: 7.44 | P141: 0.3999999997 | Q141: -0.3968441066 | R141: 2.003155893
O142: 7.5 | P142: 0.3992098025 | Q142: -0.3992098025 | R142: 2
O143: 7.56 | P143: 0.3968441066 | Q143: -0.3999999997 | R143: 1.996844107
O144: 7.62 | P144: 0.3929122482 | Q144: -0.3992115797 | R144: 1.993700669
O145: 7.68 | P145: =Height1*COS(Wavenumber1*$O145-omega1*Time) -> 0.3874297448 | Q145: -0.396847654 | R145: 1.990582091
O146: 7.74 | P146: 0.3804182331 | Q146: =offset+Height2*COS(Wavenumber2*$O146+omega2*Time) -> -0.3929175519 | R146: =2+P146+Q146 -> 1.987500681
O147: =O146+stepsize*0.5*(Wavelength1+Wavelength1) -> 7.8 | P147: 0.3719053845 | Q147: -0.3874367836 | R147: 1.984468601
O148: 7.86 | P148: 0.3619247952 | Q148: -0.3804269795 | R148: 1.981497816
O149: 7.92 | P149: 0.3505158541 | Q149: -0.3719158038 | R149: 1.97860005
O150: 7.98 | P150: 0.337723587 | Q150: -0.3619368464 | R150: 1.975786741
O151: 8.04 | P151: 0.3235984793 | Q151: -0.3505294895 | R151: 1.97306899
O152: 8.1 | P152: 0.3081962761 | Q152: -0.337738753 | R152: 1.970457523
O153: 8.16 | P153: 0.2915777631 | Q153: -0.3236151158 | R153: 1.967962647
O154: 8.22 | P154: 0.2738085259 | Q154: -0.3082143177 | R154: 1.965594208
O155: 8.28 | P155: 0.2549586915 | Q155: -0.2915971384 | R155: 1.963361553
O156: 8.34 | P156: 0.2351026516 | Q156: -0.2738291585 | R156: 1.961273493
O157: 8.4 | P157: 0.214318769 | Q157: -0.2549805 | R157: 1.959338269
O158: 8.46 | P158: 0.1926890681 | Q158: -0.2351255499 | R158: 1.957563518
O159: 8.52 | P159: 0.1702989115 | Q159: -0.2143426667 | R159: 1.955956245
O160: 8.58 | P160: 0.1472366629 | Q160: -0.1927138709 | R160: 1.954522792
O161: 8.64 | P161: 0.1235933384 | Q161: -0.1703245216 | R161: 1.953268817
O162: 8.7 | P162: 0.09946224749 | Q162: -0.1472629791 | R162: 1.952199268
O163: 8.76 | P163: 0.07493862453 | Q163: -0.123620257 | R163: 1.951318368
O164: 8.82 | P164: 0.05011925306 | Q164: -0.09948966212 | R164: 1.950629591
O165: 8.88 | P165: 0.0251020838 | Q165: -0.07496642704 | R165: 1.950135657
O166: 8.94 | P166: -1.415192454e-05 | Q166: -0.05014733373 | R166: 1.949838514
O167: 9 | P167: -0.02513033179 | Q167: -0.02513033179 | R167: 1.949739336
O168: 9.06 | P168: -0.05014733373 | Q168: -1.415192456e-05 | R168: 1.949838514
O169: 9.12 | P169: -0.07496642704 | Q169: 0.0251020838 | R169: 1.950135657
O170: 9.18 | P170: -0.09948966212 | Q170: 0.05011925306 | R170: 1.950629591
O171: 9.24 | P171: -0.123620257 | Q171: 0.07493862453 | R171: 1.951318368
O172: 9.3 | P172: -0.1472629791 | Q172: 0.09946224749 | R172: 1.952199268
O173: 9.36 | P173: -0.1703245216 | Q173: 0.1235933384 | R173: 1.953268817
O174: 9.42 | P174: -0.1927138709 | Q174: 0.1472366629 | R174: 1.954522792
O175: 9.48 | P175: -0.2143426667 | Q175: 0.1702989115 | R175: 1.955956245
O176: 9.54 | P176: -0.2351255499 | Q176: 0.1926890681 | R176: 1.957563518
O177: 9.6 | P177: -0.2549805 | Q177: 0.214318769 | R177: 1.959338269
O178: 9.66 | P178: -0.2738291585 | Q178: 0.2351026516 | R178: 1.961273493
O179: 9.72 | P179: -0.2915971384 | Q179: 0.2549586915 | R179: 1.963361553
O180: 9.78 | P180: -0.3082143177 | Q180: 0.2738085259 | R180: 1.965594208
O181: 9.84 | P181: -0.3236151158 | Q181: 0.2915777631 | R181: 1.967962647
O182: 9.9 | P182: -0.337738753 | Q182: 0.3081962761 | R182: 1.970457523
O183: 9.96 | P183: -0.3505294895 | Q183: 0.3235984793 | R183: 1.97306899
O184: 10.02 | P184: -0.3619368464 | Q184: 0.337723587 | R184: 1.975786741
O185: 10.08 | P185: -0.3719158038 | Q185: 0.3505158541 | R185: 1.97860005
O186: 10.14 | P186: -0.3804269795 | Q186: 0.3619247952 | R186: 1.981497816
O187: 10.2 | P187: -0.3874367836 | Q187: 0.3719053845 | R187: 1.984468601
O188: 10.26 | P188: -0.3929175519 | Q188: 0.3804182331 | R188: 1.987500681
O189: 10.32 | P189: -0.396847654 | Q189: 0.3874297448 | R189: 1.990582091
O190: 10.38 | P190: -0.3992115797 | Q190: 0.3929122482 | R190: 1.993700669
O191: 10.44 | P191: -0.3999999997 | Q191: 0.3968441066 | R191: 1.996844107
O192: 10.5 | P192: -0.3992098025 | Q192: 0.3992098025 | R192: 2
O193: 10.56 | P193: -0.3968441066 | Q193: 0.3999999997 | R193: 2.003155893
O194: 10.62 | P194: -0.3929122482 | Q194: 0.3992115797 | R194: 2.006299331
O195: 10.68 | P195: -0.3874297448 | Q195: 0.396847654 | R195: 2.009417909
O196: 10.74 | P196: -0.3804182331 | Q196: 0.3929175519 | R196: 2.012499319
O197: 10.8 | P197: -0.3719053845 | Q197: 0.3874367836 | R197: 2.015531399
O198: 10.86 | P198: -0.3619247952 | Q198: 0.3804269795 | R198: 2.018502184
O199: 10.92 | P199: -0.3505158541 | Q199: 0.3719158038 | R199: 2.02139995
O200: 10.98 | P200: -0.337723587 | Q200: 0.3619368464 | R200: 2.024213259
O201: 11.04 | P201: -0.3235984793 | Q201: 0.3505294895 | R201: 2.02693101
O202: 11.1 | P202: -0.3081962761 | Q202: 0.337738753 | R202: 2.029542477
O203: 11.16 | P203: -0.2915777631 | Q203: 0.3236151158 | R203: 2.032037353
O204: 11.22 | P204: -0.2738085259 | Q204: 0.3082143177 | R204: 2.034405792
O205: 11.28 | P205: -0.2549586915 | Q205: 0.2915971384 | R205: 2.036638447
... 319 more rows
